[Event "WYCC 2018 O14"]
[Site "Halkidiki"]
[Date "2018.10.30"]
[Round "11"]
[White "Bolognese, Leonardo"]
[Black "Juhasz, Agoston"]
[Result "0-1"]
[ECO "D91"]
[WhiteElo "1947"]
[BlackElo "2174"]
[Annotator "NA"]
[PlyCount "90"]
[EventDate "2018.10.20"]
[EventType "swiss"]
[EventCountry "GRE"]
[SourceTitle "playchess.com"]
[Source "ChessBase"]
[SourceQuality "1"]
[TimeControl "40/5400+30:1800+30"]

1. Nf3 {[%emt 0:00:00]} Nf6 {[%emt 0:00:00]} 2. c4 {[%emt 0:00:00]} g6 {[%emt 0:00:54]} 3. d4 {[%emt 0:01:15]} Bg7 {[%emt 0:00:17]} 4. Nc3 {[%emt 0:01:51]} d5 {[%emt 0:00:17]} 5. Bg5 {[%emt 0:00:32]} dxc4 {[%emt 0:00:30]} 6. e3 {[%emt 0:01:46]} Be6 {[%emt 0:01:42]} 7. Ne5 {[%emt 0:03:36]} Nd5 {[%emt 0:01:12]} 8. Nxc4 {[%emt 0:02:47] D91: Grünfeld: 4 Nf3 Bg7 5 Bg5} c5 {[%emt 0:01:36]} (8... O-O 9. Rc1 Na6 10. e4 Nxc3 11. bxc3 f5 12. exf5 Rxf5 13. h4 Qf8 14. Qd2 Qf7 15. Ne3 Ra5 {1-0 (57) Adly,A (2605)-Salem,A (2489) Dubai 2011}) 9. Qa4+ {[%emt 0:13:55]} Nc6 {[%emt 0:02:59]} 10. Ne5 {[%emt 0:03:32]} O-O {[%emt 0:05:34]} 11. Nxc6 {[%emt 0:05:29]} bxc6 {[%emt 0:00:11]} 12. Be2 {[%emt 0:13:01]} cxd4 {[%emt 0:19:37]} 13. exd4 {[%emt 0:01:44]} Nxc3 $146 {[%emt 0:11:07]} ({Predecessor:} 13... c5 14. O-O cxd4 15. Nxd5 Bxd5 {0-1 (44) Michalicka,M (2185)-Zambo,Z (2365) Tatranske Zruby 2015}) 14. bxc3 {[%emt 0:00:44]} Qd5 {[%emt 0:00:32]} 15. Bf4 {[%emt 0:07:52]} Qxg2 {[%emt 0:00:25]} 16. Rf1 {[%emt 0:00:04]} Bh3 {[%emt 0:06:01]} 17. f3 {[%emt 0:07:03]} Rfe8 {[%emt 0:02:35]} 18. Bg3 {[%emt 0:06:19]} e5 {[%emt 0:01:40]} 19. Rd1 {[%emt 0:02:18]} exd4 {[%emt 0:08:14]} 20. Rf2 {[%emt 0:02:40]} Rxe2+ {[%emt 0:00:43]} 21. Kxe2 {[%emt 0:02:51]} Re8+ {[%emt 0:05:49]} 22. Kd3 {[%emt 0:03:03]} Bf5+ {[%emt 0:01:20]} 23. Kc4 {[%emt 0:01:02]} Be6+ {[%emt 0:00:30]} 24. Kd3 {[%emt 0:00:19]} Qh3 {[%emt 0:01:04]} 25. cxd4 {[%emt 0:01:23]} Qf5+ {[%emt 0:00:20]} 26. Kd2 {[%emt 0:02:56]} h5 {[%emt 0:10:06]} 27. Bc7 {[%emt 0:10:10]} Re7 {[%emt 0:01:50]} 28. Qa5 {[%emt 0:01:05]} Bd5 {[%emt 0:00:24]} 29. Be5 {[%emt 0:00:57]} f6 {[%emt 0:02:23]} 30. Bd6 {[%emt 0:01:23]} Rb7 {[%emt 0:01:21]} 31. Qd8+ {[%emt 0:00:42]} Kh7 {[%emt 0:00:07]} 32. Ke1 {[%emt 0:00:05]} Rd7 {[%emt 0:00:34]} 33. Qe8 {[%emt 0:02:00]} Rxd6 {[%emt 0:00:26]} 34. Re2 {[%emt 0:00:18]} Bxf3 {[%emt 0:00:45]} 35. Re7 {[%emt 0:00:51]} Qc2 {[%emt 0:08:40]} 36. Rxg7+ {[%emt 0:00:39]} Kxg7 {[%emt 0:00:03]} 37. Qe7+ {[%emt 0:00:05]} Kh6 {[%emt 0:00:20]} 38. Qe3+ {[%emt 0:00:07]} g5 {[%emt 0:00:59]} 39. Qxf3 {[%emt 0:01:11]} Qxh2 {[%emt 0:01:52]} 40. Qe3 {[%emt 0:00:00]} Qxa2 {[%emt 0:00:00]} 41. d5 {[%emt 0:05:03]} Rxd5 $19 {[%emt 0:03:40]} 42. Rxd5 {[%emt 0:00:07]} Qxd5 {[%emt 0:00:19]} 43. Qxa7 {[%emt 0:00:09]} h4 {[%emt 0:02:17]} 44. Qa8 {[%emt 0:00:05]} Qe6+ {[%emt 0:01:41]} 45. Kd2 {[%emt 0:00:11]} h3 {[%emt 0:01:18]} 0-1

[Event "WYCC 2018 O14"]
[Site "Halkidiki"]
[Date "2018.10.30"]
[Round "11"]
[White "Ibarra, Juan Martin"]
[Black "Mishra, Abhimanyu"]
[Result "1/2-1/2"]
[ECO "B44"]
[WhiteElo "1899"]
[BlackElo "2149"]
[Annotator "NA"]
[PlyCount "90"]
[EventDate "2018.10.20"]
[EventType "swiss"]
[EventCountry "GRE"]
[SourceTitle "playchess.com"]
[Source "ChessBase"]
[SourceQuality "1"]
[TimeControl "40/5400+30:1800+30"]

1. e4 {[%emt 0:00:00]} c5 {[%emt 0:00:00]} 2. Nf3 {[%emt 0:00:00]} e6 {[%emt 0:00:00]} 3. d4 {[%emt 0:00:00]} cxd4 {[%emt 0:00:00]} 4. Nxd4 {[%emt 0:00:00]} Nc6 {[%emt 0:00:11]} 5. Nb5 {[%emt 0:00:00]} d6 {[%emt 0:00:38]} 6. c4 {[%emt 0:00:11]} a6 {[%emt 0:01:24]} 7. N5c3 {[%emt 0:00:47]} Nf6 {[%emt 0:01:54]} 8. Be2 {[%emt 0:00:37] B44: Sicilian: Taimanov: 5 Nb5} Ne5 {[%emt 0:01:09]} 9. Bf4 {[%emt 0:01:55]} Qc7 {[%emt 0:09:22]} 10. O-O {[%emt 0:06:25]} Be7 {[%emt 0:03:47]} 11. Nd2 {[%emt 0:03:52]} O-O {[%emt 0:05:21]} 12. Rc1 {[%emt 0:01:11]} b6 {[%emt 0:05:37]} 13. a3 $146 {[%emt 0:03:05]} ({Predecessor:} 13. Bg3 Bb7 14. f4 Nc6 15. Kh1 Nd4 {1-0 (29) Jumabayev,R (2611)-Stratonowitsch,A (2138) Doha 2016}) 13... Bb7 {[%emt 0:03:53]} 14. Bg3 {[%emt 0:05:25]} Ned7 {[%emt 0:06:28]} 15. b4 {[%emt 0:01:00]} Rac8 {[%emt 0:02:11]} 16. f4 {[%emt 0:08:02]} Qb8 {[%emt 0:08:38]} 17. Bf3 {[%emt 0:03:42]} b5 {[%emt 0:15:30]} 18. e5 {[%emt 0:16:06]} Bxf3 {[%emt 0:10:33]} 19. Nxf3 {[%emt 0:00:05]} Ne8 {[%emt 0:06:32]} 20. exd6 {[%emt 0:07:14]} Nxd6 {[%emt 0:04:02]} 21. c5 {[%emt 0:09:56]} Nf5 {[%emt 0:03:27]} 22. Qe2 {[%emt 0:09:01]} Rfd8 {[%emt 0:04:15]} 23. Rfd1 {[%emt 0:00:29]} Nf6 {[%emt 0:01:06]} 24. Ne5 {[%emt 0:05:19]} Qc7 {[%emt 0:01:51]} 25. Bf2 {[%emt 0:01:32]} h5 {[%emt 0:01:04]} 26. Ne4 {[%emt 0:01:42]} Nd5 {[%emt 0:01:21]} 27. Qxh5 {[%emt 0:01:17]} Nxf4 {[%emt 0:01:00]} 28. Qxf7+ {[%emt 0:00:34]} Kh7 {[%emt 0:00:01]} 29. Rxd8 {[%emt 0:05:01]} Qxd8 {[%emt 0:01:35]} 30. Re1 {[%emt 0:06:58]} Qd5 {[%emt 0:01:21]} 31. Nd7 {[%emt 0:01:56]} Qd3 {[%emt 0:00:44]} 32. Ne5 {[%emt 0:01:28]} Ne2+ {[%emt 0:00:26]} 33. Rxe2 {[%emt 0:00:16]} Qxe2 {[%emt 0:00:16]} 34. Qg6+ {[%emt 0:00:49]} Kh8 {[%emt 0:00:21]} 35. Nf7+ {[%emt 0:01:00]} Kg8 {[%emt 0:00:02]} 36. Ng3 {[%emt 0:00:20]} Qd1+ {[%emt 0:01:22]} 37. Nf1 {[%emt 0:00:05]} Rf8 {[%emt 0:00:30]} 38. Ne5 {[%emt 0:00:11]} Qd5 {[%emt 0:00:19]} 39. Ng4 {[%emt 0:01:09]} Rd8 {[%emt 0:00:46]} 40. c6 {[%emt 0:00:00]} (40. Nfe3 $1 $11 {remains equal.} Nxe3 41. Nh6+ (41. Nxe3 Qe5 $17) 41... Kh8 42. Nf7+ Kg8 43. Nh6+ Kh8 44. Nf7+ Kg8 45. Nh6+) 40... Qxc6 {[%emt 0:00:00]} (40... Rc8 $17 41. h3 Kh8 42. Qh5+ Nh6 43. Qxd5 exd5) 41. Ne5 {[%emt 0:00:34]} Qd5 {[%emt 0:09:31]} 42. Qf7+ {[%emt 0:00:07]} Kh7 {[%emt 0:00:38]} 43. Qg6+ {[%emt 0:00:15]} Kg8 {[%emt 0:08:45]} 44. Qf7+ $11 {[%emt 0:00:08]} Kh7 {[%emt 0:00:07]} 45. Qg6+ {[%emt 0:00:04]} Kg8 {[%emt 0:02:30]} 1/2-1/2

[Event "WYCC 2018 O14"]
[Site "Halkidiki"]
[Date "2018.10.30"]
[Round "11"]
[White "Ngo, Duc Tri"]
[Black "Van Dael, Siem"]
[Result "1/2-1/2"]
[ECO "B23"]
[WhiteElo "1883"]
[BlackElo "2202"]
[Annotator "NA"]
[PlyCount "80"]
[EventDate "2018.10.20"]
[EventType "swiss"]
[EventCountry "GRE"]
[SourceTitle "playchess.com"]
[Source "ChessBase"]
[SourceQuality "1"]
[TimeControl "40/5400+30:1800+30"]

1. e4 {[%emt 0:00:00]} c5 {[%emt 0:00:00]} 2. Nc3 {[%emt 0:00:00]} d6 {[%emt 0:00:00]} 3. g3 {[%emt 0:00:02]} g6 {[%emt 0:00:00]} 4. Bg2 {[%emt 0:00:03]} Bg7 {[%emt 0:00:00]} 5. Nge2 {[%emt 0:00:03]} Nc6 {[%emt 0:00:01]} 6. O-O {[%emt 0:02:55]} Nf6 {[%emt 0:00:08]} 7. d4 {[%emt 0:00:57]} cxd4 {[%emt 0:00:06]} 8. Nxd4 {[%emt 0:00:03]} O-O {[%emt 0:00:07]} 9. Nxc6 {[%emt 0:04:09]} bxc6 {[%emt 0:00:06]} 10. e5 {[%emt 0:00:02] B70: Sizilianisch (Drachen-Variante)} dxe5 {[%emt 0:00:06]} 11. Bxc6 {[%emt 0:00:04]} Rb8 {[%emt 0:00:06]} 12. Qxd8 {[%emt 0:00:11]} Rxd8 {[%emt 0:00:05]} 13. Re1 {[%emt 0:01:03]} (13. Ba4 e4 14. Bb3 Bg4 15. Bf4 Rb7 16. Rfe1 Bf3 17. a4 e6 18. Be5 Rd2 19. Bf4 Rd8 20. Be5 Rd2 21. Bf4 {½-½ (21) Vallejo Pons,F (2684)-Edouard,R (2636) Berlin 2015}) 13... Ne8 {[%emt 0:08:20]} 14. Bg5 $146 {[%emt 0:04:58]} ({Vorgänger:} 14. Rb1 Bf5 15. Be4 Nd6 16. Bxf5 Nxf5 17. Ne2 Nd6 {0-1 (26) Sierra Bermejo,G (1661)-Sirera Ripoll,J (1750) Madrid 2014}) 14... f6 {[%emt 0:03:36]} 15. Rad1 {[%emt 0:00:42]} Rxd1 {[%emt 0:03:33]} 16. Nxd1 {[%emt 0:02:25]} Nd6 {[%emt 0:03:44]} 17. Be3 {[%emt 0:00:07]} Bb7 {[%emt 0:00:28]} 18. Bxb7 {[%emt 0:00:04]} Rxb7 {[%emt 0:00:05]} 19. b3 {[%emt 0:00:03]} Nf5 {[%emt 0:00:46]} 20. c4 {[%emt 0:00:52]} Nd4 {[%emt 0:01:46]} 21. Kg2 {[%emt 0:00:06]} f5 {[%emt 0:04:48]} 22. Nc3 {[%emt 0:00:28]} (22. Bxd4 $14 exd4 23. f4) 22... e4 {[%emt 0:02:58]} 23. Bxd4 {[%emt 0:06:48]} Bxd4 {[%emt 0:00:07]} 24. Nb5 {[%emt 0:00:02]} e5 {[%emt 0:03:35]} 25. Rd1 {[%emt 0:00:10]} a6 {[%emt 0:02:04]} 26. Nxd4 {[%emt 0:00:03]} Rd7 {[%emt 0:00:06]} 27. c5 {[%emt 0:00:02]} exd4 {[%emt 0:00:11]} 28. c6 {[%emt 0:00:03]} Rc7 {[%emt 0:00:09]} 29. Rxd4 {[%emt 0:00:03]} Rxc6 {[%emt 0:00:05]} 30. Rd2 {[%emt 0:00:52]} Kf7 {[%emt 0:01:22]} 31. f3 {[%emt 0:01:48]} Ke6 {[%emt 0:01:36]} 32. Kf2 {[%emt 0:00:08]} Rc3 {[%emt 0:00:17]} 33. fxe4 {[%emt 0:00:11]} fxe4 {[%emt 0:00:05]} 34. Rd4 {[%emt 0:00:06]} Rc2+ {[%emt 0:04:46]} 35. Ke3 {[%emt 0:00:04]} Rxa2 {[%emt 0:00:06]} 36. Rxe4+ {[%emt 0:00:03]} Kd5 {[%emt 0:00:13]} 37. Rh4 {[%emt 0:00:33]} h5 {[%emt 0:01:58]} 38. g4 {[%emt 0:00:03]} Rb2 {[%emt 0:00:21]} 39. gxh5 {[%emt 0:00:05]} Rxb3+ $11 {[%emt 0:00:07]} 40. Kd2 {[%emt 0:00:00]} gxh5 {[%emt 0:00:00]} 1/2-1/2

[Event "WYCC 2018 O14"]
[Site "Halkidiki"]
[Date "2018.10.30"]
[Round "11"]
[White "Vujovic, Savo"]
[Black "Torngren, Gustav"]
[Result "0-1"]
[ECO "B27"]
[WhiteElo "1781"]
[BlackElo "2107"]
[Annotator "NA"]
[PlyCount "94"]
[EventDate "2018.10.20"]
[EventType "swiss"]
[EventCountry "GRE"]
[SourceTitle "playchess.com"]
[Source "ChessBase"]
[SourceQuality "1"]
[TimeControl "40/5400+30:1800+30"]

1. e4 {[%emt 0:00:00]} c5 {[%emt 0:00:00]} 2. Nf3 {[%emt 0:00:00]} g6 {[%emt 0:00:06]} 3. d4 {[%emt 0:00:00]} cxd4 {[%emt 0:00:09]} 4. Qxd4 {[%emt 0:00:00]} Nf6 {[%emt 0:00:13]} 5. e5 {[%emt 0:00:02]} Nc6 {[%emt 0:00:08]} 6. Qa4 {[%emt 0:00:05]} Nd5 {[%emt 0:00:09]} 7. Qe4 {[%emt 0:00:09]} Nb6 {[%emt 0:00:06] B27: Sizilianisch (Frühes Fianchetto)} 8. Bg5 {[%emt 0:06:07]} (8. Nc3 Bg7 9. Bf4 d5 10. exd6 Bf5 11. dxe7 Qd7 12. Qe3 Nb4 13. Rc1 Nxc2+ 14. Rxc2 Bxc2 15. Bb5 Bxc3+ 16. Qxc3 Qxb5 17. Qxh8+ Kxe7 {½-½ (22) Ortiz Suarez,I (2548)-Guseinov,G (2654) Barbera del Valles 2018}) 8... Bg7 {[%emt 0:07:12]} 9. Nc3 {[%emt 0:06:01]} d5 {[%emt 0:01:49]} 10. exd6 {[%emt 0:01:57]} Bxc3+ $146 {[%emt 0:02:49]} ({Vorgänger:} 10... Qxd6 11. Bb5 Bf5 12. Qe2 O-O 13. O-O Bg4 14. Rad1 Qc7 15. h3 Bxf3 16. Qxf3 {1-0 (51) Sanal,V (2533)-Ivic,V (2345) Zalakaros 2017}) 11. bxc3 {[%emt 0:00:04]} Qxd6 {[%emt 0:00:11]} 12. Bb5 {[%emt 0:02:24]} Bf5 {[%emt 0:02:57]} 13. Bxc6+ {[%emt 0:07:34]} bxc6 {[%emt 0:02:22]} 14. Qd4 {[%emt 0:10:34]} Qxd4 {[%emt 0:09:09]} 15. Nxd4 {[%emt 0:00:12]} Bd7 {[%emt 0:00:35]} 16. O-O {[%emt 0:02:14]} f6 {[%emt 0:00:18]} 17. Bh6 {[%emt 0:09:37]} Kf7 {[%emt 0:06:10]} 18. h4 {[%emt 0:07:32]} Na4 {[%emt 0:11:55]} 19. Rab1 {[%emt 0:10:10]} Rab8 {[%emt 0:03:34]} 20. Ne2 {[%emt 0:10:31]} Bf5 {[%emt 0:08:34]} 21. Rfc1 {[%emt 0:10:52]} Rb6 {[%emt 0:14:13]} 22. Rb3 {[%emt 0:03:33]} c5 {[%emt 0:06:12]} 23. Be3 {[%emt 0:01:26]} Rhb8 {[%emt 0:01:36]} 24. Nf4 {[%emt 0:04:14]} c4 {[%emt 0:03:08]} 25. Ra3 {[%emt 0:00:08]} Ra6 {[%emt 0:00:01]} 26. Nd5 {[%emt 0:00:38]} Bd7 {[%emt 0:07:34]} 27. Nb4 {[%emt 0:01:55]} Ra5 {[%emt 0:02:24]} 28. Kf1 {[%emt 0:01:32]} Rb7 {[%emt 0:00:20]} 29. f3 {[%emt 0:00:49]} Be8 {[%emt 0:01:09]} 30. g3 {[%emt 0:00:50]} Rf5 {[%emt 0:00:39]} 31. Kf2 {[%emt 0:00:26]} h5 {[%emt 0:02:19]} 32. Rd1 {[%emt 0:01:04]} Nxc3 {[%emt 0:00:35]} 33. Rxc3 {[%emt 0:00:11]} Rxb4 {[%emt 0:00:01]} 34. Ra3 {[%emt 0:00:59]} a5 {[%emt 0:00:59]} 35. Bd2 {[%emt 0:01:00]} Ra4 {[%emt 0:00:28]} 36. Bc1 {[%emt 0:00:26]} Rxa3 {[%emt 0:03:30]} 37. Bxa3 {[%emt 0:00:06]} Bc6 {[%emt 0:00:17]} 38. f4 {[%emt 0:00:20]} g5 {[%emt 0:00:56]} 39. Ke3 {[%emt 0:01:04]} e5 {[%emt 0:00:32]} 40. fxg5 {[%emt 0:00:00]} Rf3+ {[%emt 0:00:00]} 41. Ke2 {[%emt 0:00:59]} Rxa3 {[%emt 0:01:26]} 42. Rf1 {[%emt 0:00:12]} Bf3+ {[%emt 0:08:10]} 43. Rxf3 {[%emt 0:02:51]} Rxf3 {[%emt 0:01:45]} 44. Kxf3 {[%emt 0:01:21]} fxg5 {[%emt 0:00:16]} 45. Ke4 {[%emt 0:01:58]} gxh4 {[%emt 0:00:10]} 46. gxh4 $19 {[%emt 0:01:08]} Ke6 {[%emt 0:01:10]} 47. c3 {[%emt 0:03:29]} a4 {[%emt 0:02:40] Kd4} 0-1

[Event "WYCC 2018 O14"]
[Site "Halkidiki"]
[Date "2018.10.30"]
[Round "11"]
[White "Shinn, Jungmin"]
[Black "Boyer, Mahel"]
[Result "0-1"]
[ECO "B23"]
[WhiteElo "1659"]
[BlackElo "2227"]
[Annotator "NA"]
[PlyCount "88"]
[EventDate "2018.10.20"]
[EventType "swiss"]
[EventCountry "GRE"]
[SourceTitle "playchess.com"]
[Source "ChessBase"]
[SourceQuality "1"]
[TimeControl "40/5400+30:1800+30"]

1. e4 {[%emt 0:00:19]} c5 {[%emt 0:00:00]} 2. Nc3 {[%emt 0:00:11]} a6 {[%emt 0:00:00]} 3. Nge2 {[%emt 0:02:47]} b5 {[%emt 0:00:00]} 4. g3 {[%emt 0:01:13]} Bb7 {[%emt 0:00:00]} 5. Bg2 {[%emt 0:00:23]} e6 {[%emt 0:01:15]} 6. O-O {[%emt 0:00:34] LiveBook: 184 Games} Nf6 {[%emt 0:00:10]} 7. d3 {[%emt 0:04:58] B23: Closed Sicilian: Lines without g3} d5 {[%emt 0:00:10]} (7... b4 8. Na4 d5 9. e5 Nfd7 10. f4 Nc6 11. a3 a5 12. c4 dxc4 13. dxc4 Be7 14. Be3 O-O 15. Qc2 Qc7 16. Be4 g6 17. Rad1 Rfd8 18. Rd2 Rac8 19. Rfd1 Ncb8 {1-0 (19) Gdanski,J (2455)-Kempinski,R (2577) Zgierz 2018}) 8. Bg5 {[%emt 0:01:10]} b4 {[%emt 0:01:54]} 9. Na4 {[%emt 0:02:32]} Nbd7 {[%emt 0:02:39]} 10. exd5 {[%emt 0:02:59]} Bxd5 {[%emt 0:07:01]} 11. Bxd5 {[%emt 0:02:21]} exd5 {[%emt 0:00:11]} 12. d4 {[%emt 0:07:00]} c4 {[%emt 0:00:46]} 13. Qe1 $146 {[%emt 0:02:33]} ({Predecessor:} 13. Nf4 Be7 14. Nc5 O-O 15. Nxd7 Qxd7 {0-1 (26) Czebe,A (2458)-Englert,F (2282) Budapest 2013}) 13... Be7 {[%emt 0:07:57]} 14. Bd2 {[%emt 0:02:40]} (14. Nc5 $5) 14... a5 {[%emt 0:05:19]} 15. a3 {[%emt 0:04:56]} bxa3 {[%emt 0:04:39]} 16. bxa3 {[%emt 0:06:16]} O-O {[%emt 0:01:10]} 17. Be3 {[%emt 0:01:05]} Qc7 {[%emt 0:01:04]} 18. Nec3 {[%emt 0:00:45]} Qc6 {[%emt 0:03:25]} 19. Qe2 {[%emt 0:06:44]} Rab8 {[%emt 0:02:05]} 20. Ra2 {[%emt 0:04:04]} Rfe8 {[%emt 0:01:00]} 21. Nb2 {[%emt 0:06:09]} h6 {[%emt 0:11:21]} 22. Rb1 {[%emt 0:03:44]} Rb7 {[%emt 0:03:30]} 23. Nbd1 {[%emt 0:01:25]} Rxb1 {[%emt 0:01:46]} 24. Nxb1 {[%emt 0:00:07]} Rb8 {[%emt 0:02:13]} 25. Nbc3 {[%emt 0:02:08]} Bd6 {[%emt 0:06:20]} 26. Qf3 {[%emt 0:04:08]} Re8 {[%emt 0:08:29]} 27. Bd2 {[%emt 0:02:03]} Ne4 {[%emt 0:04:40]} 28. Nxe4 {[%emt 0:04:58]} dxe4 {[%emt 0:02:46]} 29. Qg4 {[%emt 0:02:09]} Nf6 {[%emt 0:01:57]} 30. Qf5 {[%emt 0:01:50]} Nd5 {[%emt 0:04:48]} 31. Ne3 {[%emt 0:02:21]} Nxe3 {[%emt 0:00:33]} 32. Bxe3 {[%emt 0:00:34]} a4 {[%emt 0:00:39]} 33. c3 {[%emt 0:01:01]} g6 {[%emt 0:00:20]} 34. Qh3 {[%emt 0:01:50]} h5 {[%emt 0:00:10]} 35. Qh4 {[%emt 0:01:31]} Qb5 {[%emt 0:08:15]} 36. Re2 {[%emt 0:03:50]} Bxa3 {[%emt 0:03:45]} 37. Bh6 {[%emt 0:01:30]} Qf5 {[%emt 0:00:44]} 38. h3 {[%emt 0:01:51]} Bf8 {[%emt 0:05:05]} 39. Bxf8 {[%emt 0:02:00]} Kxf8 {[%emt 0:00:05]} 40. g4 $2 {[%emt 0:00:00]} (40. Qf4 {war die einzige Verteidigung.}) 40... Qf3 {[%emt 0:00:00]} 41. Re3 {[%emt 0:00:46]} Qf4 {[%emt 0:02:17]} 42. Re1 {[%emt 0:02:38]} a3 {[%emt 0:09:36]} 43. Ra1 {[%emt 0:02:44]} e3 $19 {[%emt 0:03:48]} 44. fxe3 {[%emt 0:00:05]} Rxe3 {[%emt 0:00:58]} 0-1